[Event "Junior-SM 2025"]
[Site "Uppsala, Sweden"]
[Date "2025.07.03"]
[Round "6.1"]
[White "Ral Lustig, Melvin"]
[Black "Seo, Jung Hyun"]
[Result "1/2-1/2"]
[TimeControl "90 min for 40 move + 30 min with an increment of 30 sec starting move 1"]
[WhiteTitle "CM"]
[WhiteFideId "1764195"]
[BlackFideId "1735667"]
[WhiteElo "2233"]
[BlackElo "2153"]

1. Nf3 {[%clk 01:30:57]} {[%emt 00:00:02]} d5 {[%clk 01:30:43]} {[%emt
00:00:17]} 2. e3 {[%clk 01:31:22]} {[%emt 00:00:05]} Nf6 {[%clk 01:31:04]}
{[%emt 00:00:09]} 3. c4 {[%clk 01:31:48]} {[%emt 00:00:04]} e6 {[%clk
01:31:24]} {[%emt 00:00:11]} 4. Nc3 {[%clk 01:32:14]} {[%emt 00:00:03]} Be7
{[%clk 01:31:48]} {[%emt 00:00:06]} 5. b3 {[%clk 01:32:40]} {[%emt 00:00:04]}
c5 {[%clk 01:30:28]} {[%emt 00:01:51]} 6. cxd5 {[%clk 01:32:54]} {[%emt
00:00:15]} Nxd5 {[%clk 01:30:34]} {[%emt 00:00:24]} 7. Bb2 {[%clk 01:32:53]}
{[%emt 00:00:30]} Bf6 {[%clk 01:30:23]} {[%emt 00:00:42]} 8. Rc1 {[%clk
01:29:43]} {[%emt 00:03:40]} O-O {[%clk 01:26:10]} {[%emt 00:04:43]} 9. Be2
{[%clk 01:28:18]} {[%emt 00:01:55]} Nd7 {[%clk 01:16:18]} {[%emt 00:10:23]} 10.
Qc2 {[%clk 01:24:45]} {[%emt 00:04:02]} Nxc3 {[%clk 01:15:35]} {[%emt
00:01:13]} 11. Bxc3 {[%clk 01:24:58]} {[%emt 00:00:16]} Bxc3 {[%clk 01:15:15]}
{[%emt 00:00:51]} 12. Qxc3 {[%clk 01:25:05]} {[%emt 00:00:23]} b6 {[%clk
01:15:15]} {[%emt 00:00:31]} 13. d4 {[%clk 01:20:32]} {[%emt 00:05:02]} Bb7
{[%clk 01:14:47]} {[%emt 00:00:59]} 14. O-O {[%clk 01:18:43]} {[%emt 00:02:18]}
1/2-1/2

[Event "Junior-SM 2025"]
[Site "Uppsala, Sweden"]
[Date "2025.07.03"]
[Round "6.2"]
[White "Wernber, Hugo"]
[Black "Sandberg, Lucas"]
[Result "1-0"]
[TimeControl "90 min for 40 move + 30 min with an increment of 30 sec starting move 1"]
[WhiteTitle "FM"]
[WhiteFideId "1737511"]
[BlackFideId "1773712"]
[WhiteElo "2247"]
[BlackElo "2243"]

1. d4 {[%clk 01:30:57]} {[%emt 00:00:02]} g6 {[%clk 01:28:14]} {[%emt
00:02:46]} 2. Nf3 {[%clk 01:31:07]} {[%emt 00:00:20]} Bg7 {[%clk 01:28:03]}
{[%emt 00:00:41]} 3. e3 {[%clk 01:31:23]} {[%emt 00:00:14]} Nf6 {[%clk
01:27:21]} {[%emt 00:01:10]} 4. Be2 {[%clk 01:31:33]} {[%emt 00:00:22]} O-O
{[%clk 01:27:43]} {[%emt 00:00:08]} 5. O-O {[%clk 01:32:00]} {[%emt 00:00:04]}
d6 {[%clk 01:27:32]} {[%emt 00:00:41]} 6. b3 {[%clk 01:32:22]} {[%emt
00:00:07]} c5 {[%clk 01:22:05]} {[%emt 00:05:57]} 7. Bb2 {[%clk 01:32:47]}
{[%emt 00:00:06]} Nc6 {[%clk 01:20:52]} {[%emt 00:01:43]} 8. d5 {[%clk
01:30:05]} {[%emt 00:03:12]} Nb4 {[%clk 01:19:32]} {[%emt 00:01:50]} 9. c4
{[%clk 01:29:21]} {[%emt 00:01:13]} b5 {[%clk 01:14:17]} {[%emt 00:05:44]} 10.
a3 {[%clk 01:17:16]} {[%emt 00:12:36]} Na6 {[%clk 01:13:22]} {[%emt 00:01:24]}
11. Nc3 {[%clk 01:16:05]} {[%emt 00:01:42]} bxc4 {[%clk 01:12:03]} {[%emt
00:01:49]} 12. Bxc4 {[%clk 01:16:26]} {[%emt 00:00:09]} Nc7 {[%clk 01:11:22]}
{[%emt 00:01:10]} 13. Qd2 {[%clk 01:10:05]} {[%emt 00:06:52]} Rb8 {[%clk
01:06:50]} {[%emt 00:05:00]} 14. e4 {[%clk 01:08:45]} {[%emt 00:01:52]} Nd7
{[%clk 01:04:18]} {[%emt 00:03:00]} 15. Nd1 {[%clk 01:01:57]} {[%emt 00:07:20]}
f6 {[%clk 01:00:28]} {[%emt 00:04:19]} 16. Ne3 {[%clk 00:56:51]} {[%emt
00:05:37]} Ne5 {[%clk 00:52:06]} {[%emt 00:08:52]} 17. Nxe5 {[%clk 00:53:08]}
{[%emt 00:04:12]} fxe5 {[%clk 00:52:22]} {[%emt 00:00:15]} 18. b4 {[%clk
00:51:21]} {[%emt 00:02:16]} cxb4 {[%clk 00:45:16]} {[%emt 00:07:36]} 19. axb4
{[%clk 00:51:46]} {[%emt 00:00:06]} a6 {[%clk 00:45:31]} {[%emt 00:00:16]} 20.
Nc2 {[%clk 00:48:14]} {[%emt 00:04:00]} Nb5 {[%clk 00:39:15]} {[%emt 00:06:46]}
21. Kh1 {[%clk 00:34:41]} {[%emt 00:14:04]} Qb6 {[%clk 00:35:08]} {[%emt
00:04:35]} 22. f3 {[%clk 00:32:13]} {[%emt 00:02:59]} Bd7 {[%clk 00:32:20]}
{[%emt 00:03:18]} 23. Qd3 {[%clk 00:31:13]} {[%emt 00:01:30]} Nc7 {[%clk
00:20:58]} {[%emt 00:11:53]} 24. Ra5 {[%clk 00:24:23]} {[%emt 00:07:20]} Rfc8
{[%clk 00:18:19]} {[%emt 00:03:08]} 25. Rfa1 {[%clk 00:21:46]} {[%emt
00:03:07]} Bh6 {[%clk 00:18:30]} {[%emt 00:00:20]} 26. Bxe5 {[%clk 00:14:55]}
{[%emt 00:07:21]} dxe5 {[%clk 00:11:31]} {[%emt 00:07:29]} 27. d6+ {[%clk
00:15:14]} {[%emt 00:00:10]} Ne6 {[%clk 00:11:52]} {[%emt 00:00:08]} 28. Rxa6
{[%clk 00:09:54]} {[%emt 00:05:51]} Qb7 {[%clk 00:11:39]} {[%emt 00:00:40]} 29.
dxe7 {[%clk 00:09:17]} {[%emt 00:01:10]} Kf7 {[%clk 00:05:35]} {[%emt
00:06:33]} 30. e8=Q+ {[%clk 00:02:55]} {[%emt 00:06:53]} Kxe8 {[%clk 00:05:16]}
{[%emt 00:00:49]} 31. Bxe6 {[%clk 00:03:17]} {[%emt 00:00:07]} Bb5 {[%clk
00:02:14]} {[%emt 00:03:32]} 32. Bxc8 {[%clk 00:03:39]} {[%emt 00:00:08]} Bxa6
{[%clk 00:02:40]} {[%emt 00:00:04]} 33. Qxa6 {[%clk 00:01:41]} {[%emt
00:02:28]} Qxc8 {[%clk 00:03:00]} {[%emt 00:00:11]} 34. Qd6 {[%clk 00:01:20]}
{[%emt 00:00:51]} Rb5 {[%clk 00:01:33]} {[%emt 00:01:56]} 35. Ra7 {[%clk
00:01:04]} {[%emt 00:00:46]} Bf8 {[%clk 00:01:43]} {[%emt 00:00:20]} 36. Qf6
{[%clk 00:00:46]} {[%emt 00:00:48]} Qc4 {[%clk 00:00:52]} {[%emt 00:01:21]} 37.
Ra8+ {[%clk 00:01:05]} {[%emt 00:00:11]} Kd7 {[%clk 00:01:18]} {[%emt
00:00:04]} 38. Qd8+ {[%clk 00:01:21]} {[%emt 00:00:14]} Ke6 {[%clk 00:00:58]}
{[%emt 00:00:51]} 39. Ra6+ {[%clk 00:01:37]} {[%emt 00:00:14]} 1-0

[Event "Junior-SM 2025"]
[Site "Uppsala, Sweden"]
[Date "2025.07.03"]
[Round "6.3"]
[White "Valcu, Lavinia"]
[Black "Karlsson, Stefan"]
[Result "0-1"]
[TimeControl "90 min for 40 move + 30 min with an increment of 30 sec starting move 1"]
[WhiteFideId "1752197"]
[BlackFideId "1771183"]
[WhiteElo "2127"]
[BlackElo "2126"]

1. e4 {[%emt 00:02:57]} c5 {[%clk 01:28:07]} {[%emt 00:00:26]} 2. Nf3 {[%clk
01:30:55]} {[%emt 00:00:05]} d6 {[%clk 01:28:32]} {[%emt 00:00:06]} 3. d4
{[%clk 01:31:21]} {[%emt 00:00:04]} cxd4 {[%clk 01:28:57]} {[%emt 00:00:05]} 4.
Nxd4 {[%clk 01:31:47]} {[%emt 00:00:04]} Nf6 {[%clk 01:29:22]} {[%emt
00:00:05]} 5. Nc3 {[%clk 01:32:13]} {[%emt 00:00:03]} Nc6 {[%clk 01:29:48]}
{[%emt 00:00:04]} 6. Bg5 {[%clk 01:32:32]} {[%emt 00:00:11]} e6 {[%clk
01:30:03]} {[%emt 00:00:14]} 7. Qd2 {[%clk 01:32:51]} {[%emt 00:00:12]} a6
{[%clk 01:30:28]} {[%emt 00:00:05]} 8. O-O-O {[%clk 01:33:15]} {[%emt
00:00:06]} Bd7 {[%clk 01:30:47]} {[%emt 00:00:11]} 9. f4 {[%clk 01:33:38]}
{[%emt 00:00:07]} Be7 {[%clk 01:30:22]} {[%emt 00:00:56]} 10. Nf3 {[%clk
01:33:30]} {[%emt 00:00:37]} b5 {[%clk 01:30:18]} {[%emt 00:00:34]} 11. e5
{[%clk 01:33:48]} {[%emt 00:00:12]} b4 {[%clk 01:30:26]} {[%emt 00:00:22]} 12.
exd6 {[%clk 01:34:12]} {[%emt 00:00:06]} bxc3 {[%clk 01:30:48]} {[%emt
00:00:08]} 13. Qxc3 {[%clk 01:34:39]} {[%emt 00:00:04]} Bf8 {[%clk 01:31:12]}
{[%emt 00:00:06]} 14. Bc4 {[%clk 01:35:03]} {[%emt 00:00:06]} Rc8 {[%clk
01:26:26]} {[%emt 00:05:15]} 15. Rhe1 {[%clk 01:35:13]} {[%emt 00:00:21]} Na5
{[%clk 01:21:19]} {[%emt 00:05:37]} 16. Ne5 {[%clk 01:35:18]} {[%emt 00:00:24]}
Nxc4 {[%clk 01:16:40]} {[%emt 00:05:08]} 17. Nxc4 {[%clk 01:35:03]} {[%emt
00:00:46]} h6 {[%clk 01:16:47]} {[%emt 00:00:24]} 18. Bh4 {[%clk 01:34:41]}
{[%emt 00:00:52]} g5 {[%clk 01:15:57]} {[%emt 00:01:19]} 19. fxg5 {[%clk
01:34:21]} {[%emt 00:00:50]} hxg5 {[%clk 01:16:20]} {[%emt 00:00:07]} 20. Bxg5
{[%clk 01:34:21]} {[%emt 00:00:31]} Ne4 {[%clk 01:16:38]} {[%emt 00:00:11]} 21.
Qxh8 {[%clk 01:28:40]} {[%emt 00:06:12]} Qxg5+ {[%clk 01:16:25]} {[%emt
00:00:42]} 22. Ne3 {[%clk 01:28:50]} {[%emt 00:00:20]} Qg7 {[%clk 01:13:06]}
{[%emt 00:03:49]} 23. Qxg7 {[%clk 01:04:24]} {[%emt 00:24:56]} Bxg7 {[%clk
01:13:26]} {[%emt 00:00:10]} 24. h4 {[%clk 00:43:12]} {[%emt 00:21:42]} Be5
{[%clk 00:50:33]} {[%emt 00:23:24]} 25. Ng4 {[%clk 00:26:10]} {[%emt 00:17:32]}
Bf4+ {[%clk 00:50:18]} {[%emt 00:00:44]} 26. Kb1 {[%clk 00:26:35]} {[%emt
00:00:06]} Nd2+ {[%clk 00:34:30]} {[%emt 00:16:18]} 27. Ka1 {[%clk 00:25:57]}
{[%emt 00:01:08]} Rxc2 {[%clk 00:32:32]} {[%emt 00:02:28]} 28. Ne3 {[%clk
00:23:14]} {[%emt 00:03:13]} Rc5 {[%clk 00:26:27]} {[%emt 00:06:35]} 29. Rxd2
{[%clk 00:17:24]} {[%emt 00:06:21]} Bxe3 {[%clk 00:26:44]} {[%emt 00:00:12]} 30.
Rdd1 {[%clk 00:15:51]} {[%emt 00:02:02]} Bf2 {[%clk 00:20:11]} {[%emt
00:07:03]} 31. Rh1 {[%clk 00:13:14]} {[%emt 00:03:08]} Rh5 {[%clk 00:18:37]}
{[%emt 00:02:04]} 32. g3 {[%clk 00:10:14]} {[%emt 00:03:30]} f5 {[%clk
00:16:43]} {[%emt 00:02:23]} 33. Rd3 {[%clk 00:10:26]} {[%emt 00:00:19]} e5
{[%clk 00:15:29]} {[%emt 00:01:43]} 34. Rc1 {[%clk 00:09:56]} {[%emt 00:01:01]}
e4 {[%clk 00:13:09]} {[%emt 00:02:50]} 35. Rd5 {[%clk 00:09:42]} {[%emt
00:00:44]} Bxg3 {[%clk 00:12:05]} {[%emt 00:01:33]} 36. Rg1 {[%clk 00:10:03]}
{[%emt 00:00:10]} Rxh4 {[%clk 00:11:24]} {[%emt 00:01:11]} 37. Kb1 {[%clk
00:10:19]} {[%emt 00:00:14]} f4 {[%clk 00:10:39]} {[%emt 00:01:15]} 38. Re5+
{[%clk 00:10:34]} {[%emt 00:00:15]} Kd8 {[%clk 00:10:38]} {[%emt 00:00:31]} 39.
Kc2 {[%clk 00:09:26]} {[%emt 00:01:39]} Rh2+ {[%clk 00:07:32]} {[%emt
00:03:35]} 40. Kc3 {[%clk 00:09:19]} {[%emt 00:00:38]} e3 {[%clk 00:06:35]}
{[%emt 00:01:27]} 41. Rxe3 {[%clk 00:05:31]} {[%emt 00:04:18]} fxe3 {[%clk
00:05:05]} {[%emt 00:01:59]} 42. Rxg3 {[%clk 00:05:57]} {[%emt 00:00:04]} e2
{[%clk 00:03:00]} {[%emt 00:02:35]} 43. Rg8+ {[%clk 00:27:51]} {[%emt
00:08:35]} Be8 {[%clk 00:33:19]} {[%emt 00:00:11]} 44. Kd2 {[%clk 00:28:16]}
{[%emt 00:00:06]} Kd7 {[%clk 00:31:55]} {[%emt 00:01:53]} 45. Rg1 {[%clk
00:27:30]} {[%emt 00:01:17]} Kxd6 {[%clk 00:28:50]} {[%emt 00:03:35]} 46. Ke3
{[%clk 00:27:07]} {[%emt 00:00:53]} Bh5 {[%clk 00:26:10]} {[%emt 00:03:09]} 47.
Re1 {[%clk 00:26:36]} {[%emt 00:01:03]} Ke5 {[%clk 00:25:44]} {[%emt 00:00:55]}
48. Rc1 {[%clk 00:24:42]} {[%emt 00:02:24]} Rh3+ {[%clk 00:23:11]} {[%emt
00:03:03]} 49. Kd2 {[%clk 00:24:06]} {[%emt 00:01:06]} Kd4 {[%clk 00:23:04]}
{[%emt 00:00:37]} 50. Kc2 {[%clk 00:23:01]} {[%emt 00:01:35]} Ke3 {[%clk
00:21:04]} {[%emt 00:02:29]} 51. b4 {[%clk 00:23:01]} {[%emt 00:00:32]} Bg6+
{[%clk 00:20:46]} {[%emt 00:00:46]} 52. Kb2 {[%clk 00:22:58]} {[%emt 00:00:35]}
Kd2 {[%clk 00:20:13]} {[%emt 00:01:02]} 53. b5 {[%clk 00:23:17]} {[%emt
00:00:11]} axb5 {[%clk 00:20:06]} {[%emt 00:00:38]} 54. a4 {[%clk 00:23:37]}
{[%emt 00:00:10]} bxa4 {[%clk 00:20:11]} {[%emt 00:00:25]} 0-1

[Event "Junior-SM 2025"]
[Site "Uppsala, Sweden"]
[Date "2025.07.02"]
[Round "5.1"]
[White "Sandberg, Lucas"]
[Black "Ral Lustig, Melvin"]
[Result "0-1"]
[TimeControl "90 min for 40 move + 30 min with an increment of 30 sec starting move 1"]
[BlackTitle "CM"]
[WhiteFideId "1773712"]
[BlackFideId "1764195"]
[WhiteElo "2243"]
[BlackElo "2233"]

1. b3 {[%clk 01:30:22]} {[%emt 00:00:37]} d5 {[%clk 01:30:43]} {[%emt
00:00:18]} 2. Bb2 {[%clk 01:30:47]} {[%emt 00:00:04]} Nf6 {[%clk 01:31:06]}
{[%emt 00:00:07]} 3. Nf3 {[%clk 01:31:14]} {[%emt 00:00:03]} Bf5 {[%clk
01:31:17]} {[%emt 00:00:20]} 4. g3 {[%clk 01:31:40]} {[%emt 00:00:04]} e6
{[%clk 01:31:26]} {[%emt 00:00:20]} 5. Bg2 {[%clk 01:32:06]} {[%emt 00:00:03]}
h6 {[%clk 01:31:08]} {[%emt 00:00:49]} 6. O-O {[%clk 01:31:56]} {[%emt
00:00:39]} Nbd7 {[%clk 01:25:25]} {[%emt 00:06:14]} 7. d3 {[%clk 01:31:22]}
{[%emt 00:01:03]} Bd6 {[%clk 01:21:57]} {[%emt 00:03:58]} 8. Nbd2 {[%clk
01:28:01]} {[%emt 00:03:52]} e5 {[%clk 01:20:43]} {[%emt 00:01:44]} 9. e4
{[%clk 01:17:52]} {[%emt 00:10:38]} dxe4 {[%clk 01:12:04]} {[%emt 00:09:10]} 10.
dxe4 {[%clk 01:17:51]} {[%emt 00:00:31]} Nxe4 {[%clk 01:11:00]} {[%emt
00:01:35]} 11. Nh4 {[%clk 01:05:10]} {[%emt 00:13:10]} Nxd2 {[%clk 01:09:19]}
{[%emt 00:02:11]} 12. Nxf5 {[%clk 01:02:44]} {[%emt 00:02:55]} Nxf1 {[%clk
01:09:09]} {[%emt 00:00:40]} 13. Nxd6+ {[%clk 01:02:53]} {[%emt 00:00:22]} cxd6
{[%clk 01:09:35]} {[%emt 00:00:04]} 14. Qxd6 {[%clk 01:03:12]} {[%emt
00:00:11]} Qb6 {[%clk 01:09:13]} {[%emt 00:00:51]} 15. Qxb6 {[%clk 00:45:52]}
{[%emt 00:17:51]} axb6 {[%clk 01:09:25]} {[%emt 00:00:19]} 16. Kxf1 {[%clk
00:46:01]} {[%emt 00:00:19]} O-O-O {[%clk 01:03:32]} {[%emt 00:06:24]} 17. Bd5
{[%clk 00:40:37]} {[%emt 00:05:54]} f6 {[%clk 01:03:07]} {[%emt 00:00:55]} 18.
c4 {[%clk 00:40:48]} {[%emt 00:00:18]} Nc5 {[%clk 01:00:03]} {[%emt 00:03:34]}
19. Bc1 {[%clk 00:38:23]} {[%emt 00:02:54]} Na6 {[%clk 00:47:54]} {[%emt
00:12:40]} 20. Be3 {[%clk 00:34:07]} {[%emt 00:04:47]} Rd6 {[%clk 00:47:45]}
{[%emt 00:00:38]} 21. Be4 {[%clk 00:32:44]} {[%emt 00:01:54]} Rhd8 {[%clk
00:44:25]} {[%emt 00:03:49]} 22. Ke2 {[%clk 00:33:05]} {[%emt 00:00:10]} Nc5
{[%clk 00:36:04]} {[%emt 00:08:51]} 23. Bd5 {[%clk 00:33:04]} {[%emt 00:00:31]}
Ne6 {[%clk 00:31:28]} {[%emt 00:05:05]} 24. a4 {[%clk 00:28:00]} {[%emt
00:05:35]} f5 {[%clk 00:25:16]} {[%emt 00:06:42]} 25. a5 {[%clk 00:22:57]}
{[%emt 00:05:33]} bxa5 {[%clk 00:24:03]} {[%emt 00:01:44]} 26. Rxa5 {[%clk
00:23:09]} {[%emt 00:00:18]} f4 {[%clk 00:23:13]} {[%emt 00:01:19]} 27. Ba7
{[%clk 00:23:34]} {[%emt 00:00:05]} b6 {[%clk 00:22:05]} {[%emt 00:01:39]} 28.
Ra2 {[%clk 00:16:45]} {[%emt 00:07:18]} Nd4+ {[%clk 00:19:36]} {[%emt
00:02:59]} 29. Kf1 {[%clk 00:16:43]} {[%emt 00:00:31]} fxg3 {[%clk 00:18:38]}
{[%emt 00:01:29]} 30. hxg3 {[%clk 00:16:46]} {[%emt 00:00:27]} Nxb3 {[%clk
00:12:06]} {[%emt 00:07:02]} 31. Rb2 {[%clk 00:16:43]} {[%emt 00:00:33]} R8d7
{[%clk 00:11:55]} {[%emt 00:00:41]} 32. Rxb3 {[%clk 00:16:39]} {[%emt
00:00:34]} Rxa7 {[%clk 00:12:17]} {[%emt 00:00:08]} 33. Re3 {[%clk 00:16:53]}
{[%emt 00:00:16]} Rc7 {[%clk 00:04:28]} {[%emt 00:08:19]} 34. Rxe5 {[%clk
00:16:16]} {[%emt 00:01:08]} Rc5 {[%clk 00:03:52]} {[%emt 00:01:06]} 35. Be6+
{[%clk 00:09:17]} {[%emt 00:07:29]} Kc7 {[%clk 00:04:10]} {[%emt 00:00:11]} 36.
Re4 {[%clk 00:09:43]} {[%emt 00:00:04]} Rd2 {[%clk 00:03:37]} {[%emt 00:01:02]}
37. Rf4 {[%clk 00:08:17]} {[%emt 00:01:57]} Kd6 {[%clk 00:03:34]} {[%emt
00:00:33]} 38. Bg8 {[%clk 00:07:56]} {[%emt 00:00:51]} Rc8 {[%clk 00:03:01]}
{[%emt 00:01:03]} 39. Bh7 {[%clk 00:08:13]} {[%emt 00:00:12]} Kc5 {[%clk
00:02:33]} {[%emt 00:00:58]} 40. Rf7 {[%clk 00:07:05]} {[%emt 00:01:39]} Kxc4
{[%clk 00:02:19]} {[%emt 00:00:44]} 41. Rxg7 {[%clk 00:07:23]} {[%emt
00:00:12]} Rf8 {[%clk 00:01:03]} {[%emt 00:01:46]} 42. Rg4+ {[%clk 00:06:22]}
{[%emt 00:01:31]} Kc3 {[%clk 00:00:52]} {[%emt 00:00:41]} 0-1

[Event "Junior-SM 2025"]
[Site "Uppsala, Sweden"]
[Date "2025.07.02"]
[Round "5.2"]
[White "Seo, Jung Hyun"]
[Black "Valcu, Lavinia"]
[Result "0-1"]
[TimeControl "90 min for 40 move + 30 min with an increment of 30 sec starting move 1"]
[WhiteFideId "1735667"]
[BlackFideId "1752197"]
[WhiteElo "2153"]
[BlackElo "2127"]

1. e4 {[%clk 01:30:48]} {[%emt 00:00:11]} e5 {[%clk 01:30:56]} {[%emt
00:00:05]} 2. Nf3 {[%clk 01:31:12]} {[%emt 00:00:05]} Nc6 {[%clk 01:31:20]}
{[%emt 00:00:06]} 3. d4 {[%clk 01:31:41]} {[%emt 00:00:02]} exd4 {[%clk
01:31:42]} {[%emt 00:00:09]} 4. Nxd4 {[%clk 01:32:07]} {[%emt 00:00:04]} Nf6
{[%clk 01:31:50]} {[%emt 00:00:21]} 5. Nxc6 {[%clk 01:32:31]} {[%emt 00:00:06]}
bxc6 {[%clk 01:32:16]} {[%emt 00:00:04]} 6. e5 {[%clk 01:32:55]} {[%emt
00:00:05]} Qe7 {[%clk 01:32:41]} {[%emt 00:00:06]} 7. Qe2 {[%clk 01:33:22]}
{[%emt 00:00:03]} Nd5 {[%clk 01:33:06]} {[%emt 00:00:05]} 8. h4 {[%clk
01:33:47]} {[%emt 00:00:04]} h6 {[%clk 01:29:31]} {[%emt 00:04:06]} 9. c4
{[%clk 01:31:23]} {[%emt 00:02:55]} Ba6 {[%clk 01:29:17]} {[%emt 00:00:43]} 10.
b3 {[%clk 01:30:04]} {[%emt 00:01:49]} O-O-O {[%clk 01:28:33]} {[%emt
00:01:14]} 11. Bb2 {[%clk 01:27:32]} {[%emt 00:03:02]} f6 {[%clk 01:27:05]}
{[%emt 00:01:57]} 12. Qe4 {[%clk 01:22:07]} {[%emt 00:05:55]} Nb6 {[%clk
01:15:59]} {[%emt 00:11:37]} 13. f4 {[%clk 01:10:35]} {[%emt 00:12:02]} fxe5
{[%clk 01:12:31]} {[%emt 00:03:59]} 14. fxe5 {[%clk 01:10:45]} {[%emt
00:00:19]} Bb7 {[%clk 01:11:27]} {[%emt 00:01:34]} 15. Nd2 {[%clk 01:06:34]}
{[%emt 00:04:40]} c5 {[%clk 01:05:38]} {[%emt 00:06:20]} 16. Qg4 {[%clk
00:49:58]} {[%emt 00:17:06]} h5 {[%clk 00:57:20]} {[%emt 00:08:48]} 17. Qh3
{[%clk 00:48:20]} {[%emt 00:02:08]} g5 {[%clk 00:56:25]} {[%emt 00:01:25]} 18.
hxg5 {[%clk 00:45:36]} {[%emt 00:03:13]} Bg7 {[%clk 00:52:14]} {[%emt
00:04:42]} 19. O-O-O {[%clk 00:23:28]} {[%emt 00:22:37]} Bxe5 {[%clk 00:51:30]}
{[%emt 00:01:15]} 20. Nf3 {[%clk 00:20:52]} {[%emt 00:03:05]} Bxb2+ {[%clk
00:35:20]} {[%emt 00:16:41]} 21. Kxb2 {[%clk 00:21:15]} {[%emt 00:00:07]} Kb8
{[%clk 00:33:37]} {[%emt 00:02:13]} 22. Qg3 {[%clk 00:13:54]} {[%emt 00:07:51]}
Rhe8 {[%clk 00:28:14]} {[%emt 00:05:53]} 23. Bd3 {[%clk 00:10:23]} {[%emt
00:04:00]} d5 {[%clk 00:27:38]} {[%emt 00:01:07]} 24. Rhe1 {[%clk 00:08:57]}
{[%emt 00:01:56]} Qg7+ {[%clk 00:27:55]} {[%emt 00:00:13]} 25. Kc2 {[%clk
00:08:33]} {[%emt 00:00:54]} dxc4 {[%clk 00:27:05]} {[%emt 00:01:20]} 26. Bxc4
{[%clk 00:08:33]} {[%emt 00:00:30]} Nxc4 {[%clk 00:25:19]} {[%emt 00:02:16]} 27.
bxc4 {[%clk 00:06:40]} {[%emt 00:02:23]} Qg6+ {[%clk 00:25:03]} {[%emt
00:00:46]} 28. Kc1 {[%clk 00:05:52]} {[%emt 00:01:18]} Rxd1+ {[%clk 00:18:35]}
{[%emt 00:06:57]} 29. Rxd1 {[%clk 00:05:56]} {[%emt 00:00:27]} Qg7 {[%clk
00:17:14]} {[%emt 00:01:51]} 30. Kc2 {[%clk 00:02:02]} {[%emt 00:04:24]} Be4+
{[%clk 00:15:35]} {[%emt 00:02:09]} 31. Kb3 {[%clk 00:02:26]} {[%emt 00:00:05]}
Re6 {[%clk 00:15:11]} {[%emt 00:00:55]} 32. Rd8+ {[%clk 00:00:39]} {[%emt
00:02:17]} Kb7 {[%clk 00:15:32]} {[%emt 00:00:09]} 33. Ka4 {[%clk 00:00:32]}
{[%emt 00:00:37]} Bc2+ {[%clk 00:14:31]} {[%emt 00:01:31]} 34. Kb5 {[%clk
00:00:56]} {[%emt 00:00:06]} Qb2+ {[%clk 00:14:46]} {[%emt 00:00:14]} 35. Kxc5
{[%clk 00:01:16]} {[%emt 00:00:10]} Qb6+ {[%clk 00:15:07]} {[%emt 00:00:09]} 36.
Kd5 {[%clk 00:01:41]} {[%emt 00:00:05]} Be4# {[%clk 00:15:33]} {[%emt
00:00:04]} 0-1